bitfinex-derivatives/quotes_BTCF0:USTF0_20241223
["timestamp","ask_amount","ask_price","bid_price","bid_amount"]
[1734996511782,0.052651,95083.0,95080.0,0.002]
[1734996512483,0.052651,95083.0,95079.0,0.3608]
[1734996512675,0.052652,95082.0,95079.0,0.3608]
[1734996513080,0.052652,95082.0,95080.0,0.002]
[1734996513483,0.052652,95082.0,95080.0,0.003]
[1734996514489,0.052652,95082.0,95080.0,0.001]
[1734996515086,0.052652,95082.0,95080.0,0.003]
[1734996515786,0.052652,95081.0,95080.0,0.003]
[1734996517085,0.052649,95087.0,95080.0,0.003]
[1734996517286,0.10638185,95090.0,95080.0,0.002]
[1734996517878,0.3608,95088.0,95080.0,0.002]
[1734996518281,0.052652,95082.0,95080.0,0.002]
[1734996519192,0.052652,95082.0,95080.0,0.001]
[1734996519790,0.052652,95082.0,95080.0,0.002]
[1734996519991,0.052652,95082.0,95080.0,0.003]
[1734996522889,0.052652,95082.0,95080.0,0.001]
[1734996523093,0.052652,95082.0,95080.0,0.002]
[1734996524093,0.3608,95088.0,95080.0,0.002]
[1734996524094,0.413448,95088.0,95080.0,0.002]
[1734996524598,0.3608,95088.0,95086.0,0.052649]
[1734996524897,0.052634,95113.0,95080.0,0.002]
[1734996524898,0.17812103,95117.0,95105.0,0.052639]
[1734996525084,0.17812103,95117.0,95088.0,0.052648]
[1734996525085,0.04313822,95110.0,95109.0,0.3608]
[1734996525591,0.052634,95113.0,95109.0,0.3608]
[1734996525993,0.052634,95113.0,95110.0,0.1217]
[1734996526190,0.12548903,95117.0,95110.0,0.1217]
[1734996526396,0.12548903,95117.0,95115.0,0.052633]
[1734996526397,0.11548903,95117.0,95115.0,0.052633]
[1734996526594,0.15686129,95128.0,95126.0,0.052627]
[1734996526794,0.15686129,95128.0,95127.0,0.3608]
[1734996526998,0.15469455,95128.0,95127.0,0.3608]
[1734996527186,0.052618,95142.0,95127.0,0.3608]
[1734996527390,0.05262,95139.0,95128.0,0.0513]
[1734996527589,0.24085455,95138.0,95128.0,0.0513]
[1734996528908,0.052622,95136.0,95128.0,0.0513]
[1734996529199,0.19223355,95138.0,95128.0,0.0513]
[1734996529396,0.20023355,95138.0,95128.0,0.0523]
[1734996529992,0.012,95136.0,95128.0,0.0523]
[1734996530497,0.012,95136.0,95129.0,0.1222]
[1734996530898,0.012,95136.0,95130.0,0.052625]
[1734996531501,0.008,95136.0,95130.0,0.052625]
[1734996532393,0.004,95136.0,95128.0,0.001]
[1734996533100,0.008,95136.0,95130.0,0.002]
[1734996533901,0.060622,95136.0,95130.0,0.002]
[1734996534493,0.052622,95136.0,95128.0,0.002]
[1734996534695,0.052622,95136.0,95128.0,0.005]
[1734996535401,0.052622,95136.0,95130.0,0.002]
[1734996535601,0.10638185,95150.0,95135.0,0.3608]
[1734996535802,0.052616,95147.0,95135.0,0.3608]
[1734996535999,0.15898985,95160.0,95135.0,0.3608]
[1734996536202,0.052612,95153.0,95135.0,0.3608]
[1734996536499,0.052617,95145.0,95135.0,0.3608]
[1734996536700,0.10638185,95160.0,95137.0,0.052621]
[1734996536902,0.052614,95149.0,95137.0,0.052621]
[1734996538806,0.053614,95149.0,95144.0,0.3608]
[1734996539208,0.001,95149.0,95144.0,0.3608]
[1734996540810,0.002,95149.0,95144.0,0.3608]
[1734996541500,0.005,95149.0,95144.0,0.3608]
[1734996542503,0.005,95149.0,95144.0,0.2878]
[1734996542805,0.057615,95149.0,95144.0,0.2878]
[1734996544808,0.005,95149.0,95144.0,0.2878]
[1734996545112,0.005,95149.0,95148.0,0.052615]
[1734996546705,0.004,95149.0,95148.0,0.052615]
[1734996547012,0.001,95149.0,95148.0,0.052615]
[1734996547318,0.052602,95172.0,95148.0,0.413415]
[1734996547509,0.1296,95174.0,95157.0,0.340409]
[1734996547812,0.052603,95170.0,95158.0,0.1277]
[1734996548405,0.052604,95169.0,95158.0,0.1277]
[1734996548608,0.052606,95165.0,95158.0,0.1277]
[1734996548907,0.3608,95166.0,95157.0,0.04594207]
[1734996549106,0.413409,95158.0,95148.0,0.3608]
[1734996549411,0.3608,95149.0,95138.0,0.35496]
[1734996549604,0.05262,95140.0,95138.0,0.35344]
[1734996550008,0.05262,95140.0,95138.0,0.39767024]
[1734996550201,0.05262,95139.0,95138.0,0.39767024]
[1734996550411,0.05262,95139.0,95129.0,0.3608]
[1734996550412,0.052625,95130.0,95129.0,0.3608]
[1734996551612,0.001,95139.0,95129.0,0.3608]
[1734996551807,0.3608,95141.0,95137.0,0.052621]
[1734996552415,0.3608,95141.0,95130.0,0.052624]
[1734996552809,0.413419,95141.0,95130.0,0.052624]
[1734996553011,0.052621,95137.0,95129.0,0.40792478]
[1734996553205,0.3608,95141.0,95130.0,0.052625]
[1734996553807,0.3618,95141.0,95130.0,0.052625]
[1734996554007,0.3618,95141.0,95130.0,0.053625]
[1734996554211,0.3608,95141.0,95130.0,0.053625]
[1734996554416,0.10638185,95140.0,95130.0,0.003]
[1734996554615,0.052623,95134.0,95130.0,0.003]
[1734996555818,0.052623,95134.0,95130.0,0.002]
[1734996556019,0.10638185,95140.0,95130.0,0.002]
[1734996556020,0.052623,95133.0,95130.0,0.003]
[1734996556319,0.10638185,95140.0,95130.0,0.003]
[1734996556519,0.052624,95132.0,95130.0,0.003]
[1734996557016,0.10638185,95140.0,95130.0,0.003]
[1734996557220,0.052624,95131.0,95130.0,0.003]
[1734996557415,0.052624,95131.0,95130.0,0.002]
[1734996557611,0.10638185,95140.0,95130.0,0.003]
[1734996559022,0.052622,95135.0,95130.0,0.003]
[1734996559516,0.10638185,95140.0,95130.0,0.003]
[1734996559729,0.10638185,95140.0,95130.0,0.054624]
[1734996559730,0.05262,95140.0,95130.0,0.054624]
[1734996560022,0.05262,95140.0,95130.0,0.416424]
[1734996560423,0.3608,95141.0,95130.0,0.3638]
[1734996560627,0.05262,95138.0,95130.0,0.3638]
[1734996560925,0.05262,95138.0,95130.0,0.003]
[1734996561324,0.05262,95138.0,95136.0,0.25031383]
[1734996561915,0.052621,95137.0,95136.0,0.25031383]
[1734996562524,0.3608,95141.0,95135.0,0.25031383]
[1734996562525,0.052622,95136.0,95135.0,0.25031383]
[1734996564021,0.3608,95141.0,95131.0,0.25031383]
[1734996564022,0.052624,95132.0,95131.0,0.25031383]
[1734996564323,0.413424,95132.0,95131.0,0.25031383]
[1734996564719,0.6608,95132.0,95122.0,0.31122242]
[1734996565022,0.413429,95123.0,95122.0,0.31122242]
[1734996565814,0.3608,95123.0,95106.0,0.66462242]
[1734996566025,0.413438,95107.0,95106.0,0.66462242]
[1734996566730,0.413438,95107.0,95106.0,0.31122242]
[1734996566926,0.3608,95107.0,95106.0,0.36386042]
[1734996567242,0.3608,95107.0,95106.0,0.37886042]
[1734996567425,0.3608,95107.0,95106.0,0.067638]
[1734996567928,0.3608,95107.0,95106.0,0.015]
[1734996568426,0.413438,95107.0,95106.0,0.009]
[1734996568616,0.414438,95107.0,95106.0,0.015]
[1734996568818,0.053638,95107.0,95106.0,0.015]
[1734996575719,0.001,95107.0,95106.0,0.3758]
[1734996576124,0.001,95107.0,95106.0,0.015]
[1734996577216,0.001,95107.0,95106.0,0.3758]
[1734996578522,0.001,95107.0,95106.0,0.3698]
[1734996578726,0.052637,95109.0,95106.0,0.3638]
[1734996578922,0.052637,95109.0,95106.0,0.3688]
[1734996579323,0.052637,95109.0,95107.0,0.118]
[1734996581035,0.052637,95109.0,95107.0,0.123]
[1734996581435,0.052637,95109.0,95107.0,0.126]
[1734996582037,0.052636,95110.0,95107.0,0.126]
[1734996582243,0.10638185,95120.0,95107.0,0.126]
[1734996582431,0.052634,95115.0,95107.0,0.126]
[1734996582727,0.10638185,95120.0,95107.0,0.126]
[1734996582933,0.052634,95114.0,95107.0,0.126]
[1734996583526,0.052635,95112.0,95107.0,0.123]
[1734996583722,0.052635,95112.0,95107.0,0.121]
[1734996583924,0.052635,95112.0,95107.0,0.126]
[1734996584327,0.052635,95111.0,95107.0,0.121]
[1734996584529,0.052635,95111.0,95107.0,0.126]
[1734996585533,0.052635,95111.0,95107.0,0.121]
[1734996585727,0.052635,95111.0,95107.0,0.126]
[1734996586129,0.052633,95116.0,95107.0,0.126]
[1734996586330,0.052633,95115.0,95107.0,0.126]
[1734996586625,0.1233,95131.0,95113.0,0.3608]
[1734996586835,0.1137,95139.0,95113.0,0.3608]
[1734996586836,0.05263,95122.0,95113.0,0.3608]
[1734996588343,0.05263,95121.0,95113.0,0.3608]
[1734996588632,0.10638185,95130.0,95113.0,0.3658]
[1734996588633,0.05263,95122.0,95113.0,0.3658]
[1734996588834,0.10638185,95130.0,95113.0,0.3688]
[1734996589035,0.052632,95118.0,95113.0,0.3688]
[1734996589338,0.10638185,95130.0,95113.0,0.3688]
[1734996589541,0.10638185,95130.0,95113.0,0.3638]
[1734996589745,0.10638185,95130.0,95113.0,0.3658]
[1734996589746,0.052629,95122.0,95113.0,0.3658]
[1734996590329,0.052629,95122.0,95113.0,0.40314161]
[1734996590740,0.052629,95122.0,95113.0,0.40014161]
[1734996591042,0.052629,95122.0,95113.0,0.40114161]
[1734996591243,0.052629,95122.0,95113.0,0.40314161]
[1734996591629,0.052629,95122.0,95113.0,0.39914161]
[1734996591835,0.052625,95130.0,95113.0,0.40114161]
[1734996592035,0.052626,95129.0,95117.0,0.052632]
[1734996592338,0.052626,95129.0,95118.0,0.1251]
[1734996592940,0.052628,95126.0,95118.0,0.1251]
[1734996593936,0.052628,95126.0,95118.0,0.43632242]
[1734996595439,0.052628,95126.0,95109.0,0.37194479]
[1734996595645,0.3608,95121.0,95109.0,0.37194479]
[1734996595846,0.3608,95121.0,95116.0,0.052632]
[1734996596037,0.3608,95121.0,95110.0,0.10638185]
[1734996596437,0.3608,95121.0,95117.0,0.2355435]
[1734996596745,0.3608,95121.0,95118.0,0.003]
[1734996597542,0.60887614,95142.0,95117.0,0.2385435]
[1734996597739,0.001,95126.0,95120.0,0.10638185]
[1734996598050,0.12587614,95139.0,95120.0,0.10638185]
[1734996598433,0.12587614,95139.0,95132.0,0.052624]
[1734996598637,0.12587614,95139.0,95134.0,0.052623]
[1734996599038,0.3608,95142.0,95134.0,0.052623]
[1734996601036,0.052624,95133.0,95122.0,0.1157]
[1734996601231,0.052624,95132.0,95123.0,0.1178]
[1734996601736,0.3628,95135.0,95123.0,0.1178]
[1734996601940,0.3628,95135.0,95134.0,0.052623]
[1734996602335,0.3608,95135.0,95134.0,0.052623]
[1734996603741,0.3628,95135.0,95134.0,0.052623]
[1734996604142,0.3628,95135.0,95123.0,0.1198]
[1734996604338,0.3628,95135.0,95123.0,0.1178]
[1734996604545,0.3628,95135.0,95130.0,0.052625]
[1734996605648,0.3608,95135.0,95130.0,0.052625]
[1734996605846,0.3608,95135.0,95123.0,0.1208]
[1734996606150,0.3608,95126.0,95123.0,0.1208]
[1734996606351,0.3608,95126.0,95123.0,0.1198]
[1734996606545,0.052628,95124.0,95123.0,0.1198]
[1734996607044,0.3608,95126.0,95123.0,0.1208]
[1734996607247,0.3608,95126.0,95123.0,0.1228]
[1734996607848,0.3608,95126.0,95123.0,0.1218]
[1734996608440,0.3608,95126.0,95125.0,0.052628]
[1734996609251,0.3608,95135.0,95133.0,0.052623]
[1734996609644,0.3608,95135.0,95134.0,0.1241]
[1734996610346,0.3608,95135.0,95128.0,0.052626]
[1734996610741,0.3608,95135.0,95124.0,0.1241]
[1734996610940,0.3608,95125.0,95124.0,0.1241]
[1734996611154,0.3608,95125.0,95123.0,0.170429]
[1734996611856,0.33863772,95125.0,95123.0,0.170429]
[1734996612450,0.33863772,95125.0,95123.0,0.1208]
[1734996613448,0.33863772,95125.0,95124.0,0.002]
[1734996614255,0.33863772,95125.0,95123.0,0.1228]
[1734996614855,0.33863772,95125.0,95123.0,0.1198]
[1734996615056,0.33863772,95125.0,95123.0,0.1228]
[1734996615258,0.3608,95133.0,95123.0,0.1228]
[1734996615447,0.33841002,95133.0,95132.0,0.052624]
[1734996616342,0.12587614,95143.0,95132.0,0.052624]
[1734996616553,0.12587614,95143.0,95142.0,0.052618]
[1734996616762,0.3608,95144.0,95133.0,0.3608]
[1734996617058,0.413423,95134.0,95123.0,0.1198]
[1734996617255,0.052623,95133.0,95123.0,0.15126153]
[1734996617459,0.3608,95125.0,95123.0,0.03346153]
[1734996617957,0.3608,95125.0,95123.0,0.03146153]
[1734996618159,0.3608,95125.0,95119.0,0.37512706]
[1734996618354,0.3608,95125.0,95113.0,0.052634]
[1734996618662,0.3608,95125.0,95123.0,0.002]
[1734996618957,0.3608,95125.0,95123.0,0.003]
[1734996619253,0.3608,95125.0,95123.0,0.002]
[1734996620549,0.3608,95125.0,95124.0,0.052628]
[1734996620748,0.3608,95125.0,95124.0,0.177428]
[1734996621755,0.3608,95125.0,95124.0,0.1248]
[1734996622852,0.3608,95125.0,95123.0,0.08585946]
[1734996622853,0.3608,95125.0,95123.0,0.03323046]
[1734996623460,0.3608,95125.0,95124.0,0.001]
[1734996624151,0.3608,95125.0,95123.0,0.03123046]
[1734996624352,0.3608,95125.0,95123.0,0.001]
[1734996625060,0.3608,95125.0,95124.0,0.001]
[1734996625362,0.413428,95125.0,95124.0,0.001]
[1734996626559,0.3608,95125.0,95123.0,0.001]
[1734996626755,0.173628,95124.0,95123.0,0.001]
[1734996627348,0.052632,95117.0,95115.0,0.40735094]
[1734996627653,0.3608,95116.0,95115.0,0.34486507]
[1734996628563,0.3608,95116.0,95115.0,0.31264119]
[1734996629156,0.3608,95116.0,95107.0,0.31264119]
[1734996629458,0.413437,95108.0,95107.0,0.31264119]
[1734996630161,0.713437,95108.0,95098.0,0.37512706]
[1734996630457,0.413442,95099.0,95088.0,0.37512706]
[1734996630660,0.413448,95089.0,95088.0,0.40771602]
[1734996631765,0.413448,95089.0,95088.0,0.37512706]
[1734996632062,0.05265,95085.0,95079.0,0.24008441]
[1734996632261,0.3608,95080.0,95079.0,0.24008441]
[1734996632460,0.3608,95080.0,95079.0,0.16708441]
[1734996632862,0.3608,95080.0,95079.0,0.19821774]
[1734996633267,0.3608,95080.0,95079.0,0.03113333]
[1734996633462,0.3608,95080.0,95078.0,0.1224]
[1734996633656,0.3608,95080.0,95070.0,0.052658]
[1734996633864,0.3608,95080.0,95079.0,0.001]
[1734996633865,0.413453,95080.0,95079.0,0.001]
[1734996634551,0.413453,95080.0,95064.0,0.24990855]
[1734996634552,0.052653,95079.0,95078.0,0.001]
[1734996635260,0.352653,95079.0,95064.0,0.24990855]
[1734996635469,0.413461,95065.0,95064.0,0.24990855]
[1734996636262,0.4135422,95065.0,95064.0,0.24990855]
[1734996636459,0.4135422,95065.0,95051.0,0.1186]
[1734996636460,0.3608812,95065.0,95056.0,0.03203611]
[1734996636659,0.3608,95057.0,95051.0,0.1186]
[1734996636862,0.3608812,95065.0,95051.0,0.1186]
[1734996636863,8.12e-05,95065.0,95064.0,0.052661]
[1734996637165,0.004,95079.0,95077.0,0.052654]
[1734996637467,0.004,95079.0,95078.0,0.4788]
[1734996637666,0.052642,95100.0,95086.0,0.052649]
[1734996637869,0.052642,95100.0,95092.0,0.3608]
[1734996638064,0.052643,95097.0,95092.0,0.3608]
[1734996638371,4e-05,95099.0,95092.0,0.3608]
[1734996638372,0.052645,95094.0,95092.0,0.3608]
[1734996639468,0.052645,95093.0,95079.0,0.052653]
[1734996639667,0.052645,95093.0,95088.0,0.3608]
[1734996640258,0.008,95094.0,95088.0,0.3608]
[1734996640660,0.052647,95090.0,95088.0,0.3608]
[1734996642071,0.052649,95087.0,95081.0,0.1222]
[1734996642964,0.003,95090.0,95081.0,0.1222]
[1734996643178,0.004,95090.0,95081.0,0.1222]
[1734996643767,0.052649,95087.0,95081.0,0.1222]
[1734996646371,4e-05,95099.0,95081.0,0.1222]
[1734996646573,4e-05,95099.0,95078.0,0.03364402]
[1734996646574,0.052653,95079.0,95078.0,0.03364402]
[1734996646775,0.052663,95061.0,95059.0,0.24860333]
[1734996646971,4e-05,95060.0,95059.0,0.24860333]
[1734996647367,4e-05,95060.0,95059.0,0.28794323]
[1734996647771,4e-05,95060.0,95059.0,0.0393399]
[1734996647972,4e-05,95060.0,95055.0,0.3608]
[1734996648272,4e-05,95060.0,95059.0,0.005]
[1734996648774,0.00104,95060.0,95059.0,0.007]
[1734996649069,0.3608,95082.0,95059.0,0.007]
[1734996649273,0.3608,95082.0,95055.0,0.37058539]
[1734996649274,0.10638185,95080.0,95055.0,0.37058539]
[1734996649473,0.052659,95069.0,95055.0,0.37058539]
[1734996649875,0.05266,95067.0,95065.0,0.3608]
[1734996650070,0.052663,95062.0,95059.0,0.003]
[1734996650279,0.052664,95060.0,95059.0,0.003]
[1734996650667,0.053664,95060.0,95059.0,0.01]
[1734996651274,0.052664,95060.0,95059.0,0.007]
[1734996651871,0.3608,95065.0,95059.0,0.004]
[1734996652077,0.052664,95060.0,95059.0,0.004]
[1734996654077,0.052666,95056.0,95055.0,0.04078539]
[1734996654375,0.3608,95065.0,95053.0,0.1135]
[1734996654376,0.052667,95055.0,95053.0,0.1135]
[1734996654575,0.3608,95065.0,95053.0,0.1135]
[1734996654887,0.052666,95055.0,95053.0,0.1135]
[1734996655176,0.3608,95057.0,95049.0,0.1213]
[1734996655382,0.052669,95050.0,95049.0,0.1213]
[1734996655777,0.3608,95057.0,95035.0,0.052677]
[1734996655778,0.052671,95047.0,95035.0,0.052677]
[1734996655973,0.413471,95047.0,95044.0,0.03940285]
[1734996657178,0.052672,95046.0,95044.0,0.03940285]
[1734996657378,0.052672,95046.0,95036.0,0.1201]
[1734996657679,0.3608,95047.0,95036.0,0.1201]
[1734996657880,0.413471,95047.0,95046.0,0.002]
[1734996658470,0.413471,95047.0,95036.0,0.1670122]
[1734996658471,0.3608,95047.0,95036.0,0.1670122]
[1734996658678,0.052674,95041.0,95036.0,0.1700122]
[1734996658877,0.052675,95040.0,95036.0,0.1700122]
[1734996659081,0.052676,95038.0,95036.0,0.1640122]
[1734996659282,0.3608,95047.0,95036.0,0.1610122]
[1734996659479,0.052674,95041.0,95036.0,0.1610122]
[1734996660086,0.3608,95047.0,95036.0,0.1610122]
[1734996660281,0.052675,95040.0,95036.0,0.1610122]
[1734996660480,0.3608,95047.0,95036.0,0.1610122]
[1734996660481,0.052676,95038.0,95036.0,0.1610122]
[1734996660679,0.052676,95038.0,95008.0,0.413492]
[1734996660680,0.052677,95036.0,95008.0,0.413492]
[1734996660985,0.052684,95024.0,95021.0,0.04941851]
[1734996661181,0.3608,95022.0,95000.0,0.10747262]
[1734996661486,0.052687,95017.0,95010.0,0.10638185]
[1734996661683,0.052686,95021.0,95014.0,0.04958673]
[1734996661891,0.052687,95018.0,95014.0,0.04958673]
[1734996662191,0.052688,95016.0,95014.0,0.04958673]
[1734996662381,0.052688,95016.0,95006.0,0.24860333]
[1734996662382,0.3608,95022.0,95006.0,0.24860333]
[1734996662581,0.3618,95022.0,95006.0,0.24860333]
[1734996662886,0.3618,95022.0,95016.0,0.003]
[1734996663287,0.052687,95017.0,95016.0,0.003]
[1734996664085,0.052687,95017.0,95016.0,0.007]
[1734996664593,0.052693,95007.0,95006.0,0.0543371]
[1734996664796,0.413493,95007.0,95006.0,0.0543371]
[1734996664992,0.413493,95007.0,95006.0,0.0493371]
[1734996665291,0.413493,95007.0,95004.0,9.67e-05]
[1734996665292,0.052694,95005.0,95004.0,9.67e-05]
[1734996667277,0.053694,95005.0,95004.0,0.0140967]
[1734996667783,0.052694,95006.0,95004.0,0.0060967]
[1734996667982,0.052694,95006.0,95004.0,0.0010967]
[1734996668181,0.052694,95006.0,95004.0,0.0020967]
[1734996668879,0.052694,95006.0,95004.0,0.0010967]
[1734996669088,0.052694,95006.0,95004.0,0.0020967]
[1734996670490,0.052694,95006.0,95004.0,0.0010967]
[1734996670886,0.3608,95014.0,95004.0,0.0010967]
[1734996671086,0.052694,95005.0,95004.0,0.0010967]
[1734996671392,0.052694,95005.0,94989.0,0.164103]
[1734996671393,0.3608,95005.0,94956.0,0.052721]
[1734996671591,0.3608,94979.0,94958.0,0.3457]
[1734996671790,0.05271,94977.0,94958.0,0.3457]
[1734996671990,0.3608,94979.0,94964.0,0.413517]
[1734996672195,0.413509,94979.0,94964.0,0.413517]
[1734996672488,8.241e-05,94978.0,94964.0,0.413517]
[1734996672689,8.241e-05,94978.0,94973.0,0.3608]
[1734996674196,0.052712,94973.0,94964.0,0.3608]
[1734996674396,8.241e-05,94978.0,94965.0,0.052716]
[1734996674599,0.052712,94972.0,94964.0,0.3608]
[1734996674791,0.052712,94972.0,94964.0,0.3698]
[1734996675389,0.052712,94972.0,94964.0,0.3608]
[1734996675589,0.052712,94972.0,94964.0,0.3698]
[1734996675783,0.001,94973.0,94964.0,0.3698]
[1734996675988,0.001,94973.0,94964.0,0.3608]
[1734996676190,0.05272,94959.0,94958.0,0.23234]
[1734996676395,0.05272,94959.0,94958.0,0.117]
[1734996676396,0.41360874,94959.0,94958.0,0.117]
[1734996676898,8.874e-05,94959.0,94958.0,0.117]
[1734996677195,8.874e-05,94959.0,94958.0,0.11844682]
[1734996677497,8.874e-05,94959.0,94958.0,0.12244682]
[1734996677698,0.05280874,94959.0,94958.0,0.00544682]
[1734996678085,0.05280874,94959.0,94958.0,0.00444682]
[1734996679197,0.05380874,94959.0,94958.0,0.01044682]
[1734996679598,0.05380874,94959.0,94958.0,0.00444682]
[1734996679810,0.05380874,94959.0,94958.0,0.00144682]
[1734996680192,0.00108874,94959.0,94958.0,0.00144682]
[1734996680386,0.05380874,94959.0,94958.0,0.00144682]
[1734996680795,0.05380874,94959.0,94958.0,8.2e-07]
[1734996681001,0.3608,94962.0,94928.0,0.3608]
[1734996681002,0.05272,94958.0,94929.0,0.1203]
[1734996681199,0.052734,94933.0,94929.0,0.16983285]
[1734996681397,0.3608,94942.0,94929.0,0.16983285]
[1734996681398,0.052736,94930.0,94929.0,0.16983285]
[1734996681903,0.3608967,94932.0,94929.0,0.16983285]
[1734996682101,9.67e-05,94932.0,94929.0,0.16983285]
[1734996682505,9.67e-05,94932.0,94929.0,0.17883285]
[1734996682893,9.67e-05,94932.0,94929.0,0.17483285]
[1734996683094,0.0010967,94932.0,94929.0,0.18383285]
[1734996683296,0.052735,94931.0,94929.0,0.18383285]
[1734996683696,0.052735,94931.0,94929.0,0.06353285]
[1734996684007,0.052735,94931.0,94929.0,0.014]
[1734996684202,0.052735,94931.0,94914.0,0.052744]
[1734996684203,0.052735,94931.0,94896.0,0.3608]
[1734996684504,0.052735,94931.0,94860.0,0.372905]
[1734996684505,0.3608,94901.0,94860.0,0.372905]
[1734996684801,0.3608,94885.0,94878.0,0.05121176]
[1734996685101,0.3608,94919.0,94880.0,0.46718185]
[1734996685310,0.052749,94907.0,94900.0,0.10638185]
[1734996685496,0.3608,94919.0,94897.0,0.3608]
[1734996685497,0.052745,94914.0,94901.0,0.1168]
[1734996685690,0.3608,94919.0,94901.0,0.1168]
[1734996685896,0.052745,94915.0,94901.0,0.1168]
[1734996686292,0.052747,94911.0,94901.0,0.1168]
[1734996686811,0.3608,94919.0,94901.0,0.1168]
[1734996686991,0.052744,94916.0,94901.0,0.17228082]
[1734996687406,0.3608,94911.0,94901.0,0.17228082]
[1734996687602,0.3608,94911.0,94901.0,0.16728082]
[1734996687907,0.3608,94911.0,94901.0,0.16928082]
[1734996688299,0.3608,94911.0,94901.0,0.17428082]
[1734996688901,0.3608,94911.0,94901.0,0.16928082]
[1734996689104,0.052748,94908.0,94901.0,0.16928082]
[1734996689496,0.052751,94903.0,94901.0,0.002]
[1734996689702,0.3608,94902.0,94901.0,0.002]
[1734996689901,0.4741,94902.0,94873.0,0.04901608]
[1734996690205,0.3608,94880.0,94864.0,0.052772]
[1734996690402,0.3608,94880.0,94867.0,0.05277]
[1734996690910,0.36536001,94902.0,94872.0,0.3608]
[1734996691107,0.052753,94900.0,94884.0,0.3608]
[1734996691410,0.16012514,94900.0,94885.0,0.2239]
[1734996691601,0.052754,94898.0,94885.0,0.2239]
[1734996691802,0.052754,94898.0,94886.0,0.1123]
[1734996692308,0.052757,94893.0,94886.0,0.1123]
[1734996692610,0.21287814,94900.0,94886.0,0.0393]
[1734996692913,0.052753,94900.0,94886.0,0.0393]
[1734996693108,0.3608,94894.0,94886.0,0.0413]
[1734996693608,0.052759,94888.0,94886.0,0.002]
[1734996694113,0.116,94887.0,94855.0,0.1138]
[1734996694321,0.3608,94863.0,94855.0,0.16335598]
[1734996695604,0.3608,94875.0,94861.0,0.052774]
[1734996695999,0.001,94863.0,94861.0,0.052774]
[1734996696705,0.001,94863.0,94858.0,0.3608]
[1734996697313,0.001,94863.0,94861.0,0.003]
[1734996698512,0.052768,94873.0,94861.0,0.007]
[1734996698706,0.052768,94873.0,94861.0,0.004]
[1734996699106,0.001,94863.0,94861.0,0.056774]
[1734996699509,0.3608,94885.0,94874.0,0.052767]
[1734996699706,0.3608,94885.0,94872.0,0.3608]
[1734996699907,0.3608,94893.0,94872.0,0.3608]
[1734996700106,0.3608,94893.0,94879.0,0.052764]
[1734996700310,0.3608,94893.0,94880.0,0.2253]
[1734996700519,0.052762,94884.0,94880.0,0.2253]
[1734996700716,0.052763,94882.0,94880.0,0.1155]
[1734996700914,0.3608,94881.0,94869.0,0.3608]
[1734996701103,0.3608,94873.0,94862.0,0.2312]
[1734996701309,0.16012514,94872.0,94862.0,0.1155]
[1734996701512,0.41512801,94873.0,94861.0,0.007]
[1734996701709,0.413568,94873.0,94862.0,0.119]
[1734996701912,0.052769,94870.0,94862.0,0.119]
[1734996702120,0.36136001,94873.0,94865.0,0.3608]
[1734996702307,0.3608,94873.0,94865.0,0.3608]
[1734996702615,0.3608,94873.0,94862.0,0.119]
[1734996702616,0.001,94872.0,94866.0,0.3608]
[1734996702819,0.001,94872.0,94867.0,0.052771]
[1734996703120,0.001,94872.0,94866.0,0.3608]
[1734996703121,0.001,94870.0,94866.0,0.3608]
[1734996703421,0.001,94870.0,94865.0,0.002]
[1734996703610,0.001,94870.0,94866.0,0.0113807]
[1734996703810,0.001,94870.0,94867.0,0.0113807]
[1734996704011,0.001,94870.0,94868.0,0.0113807]
[1734996704311,0.001,94870.0,94869.0,0.0113807]
[1734996704720,0.052769,94871.0,94869.0,0.0113807]
[1734996704916,0.001,94872.0,94870.0,0.0113807]
[1734996705117,0.001,94872.0,94871.0,0.0113807]
[1734996705306,0.36144,94875.0,94871.0,0.0113807]
[1734996705513,0.3608,94875.0,94872.0,0.0113807]
[1734996705713,0.3608,94875.0,94873.0,0.0113807]
[1734996706014,0.052765,94879.0,94874.0,0.0113807]
[1734996706313,0.052765,94879.0,94875.0,0.0113807]
[1734996706512,0.3608,94883.0,94876.0,0.0113807]
[1734996706715,0.3608,94883.0,94877.0,0.0113807]
[1734996706921,0.3608,94883.0,94878.0,0.0113807]
[1734996707221,0.3608,94883.0,94879.0,0.0113807]
[1734996707418,0.052763,94881.0,94880.0,0.0113807]
[1734996707622,0.413563,94881.0,94880.0,0.0113807]
[1734996707825,0.052766,94875.0,94874.0,0.001]
[1734996708022,0.052766,94875.0,94874.0,0.01246309]
[1734996709115,0.052766,94875.0,94874.0,0.01146309]
[1734996709317,0.052766,94875.0,94874.0,0.002]
[1734996709517,0.052766,94875.0,94874.0,0.01352466]
[1734996709721,0.052766,94875.0,94874.0,0.002]
[1734996709919,0.052766,94875.0,94874.0,0.01452475]
[1734996712327,0.052766,94875.0,94874.0,0.01458648]
[1734996712730,0.052766,94875.0,94874.0,0.003]
[1734996713817,0.1781271,94875.0,94874.0,0.003]
[1734996715123,0.1781271,94875.0,94860.0,0.052774]
[1734996715124,0.052773,94863.0,94860.0,0.052774]
[1734996715324,0.3608,94862.0,94860.0,0.052774]
[1734996715630,0.3608,94862.0,94851.0,0.05278]
[1734996715823,0.3608,94852.0,94851.0,0.05278]
[1734996716624,0.3608,94852.0,94847.0,0.052782]
[1734996717345,0.09456501,94860.0,94851.0,0.05778]
[1734996717741,0.3608,94853.0,94851.0,0.005]
[1734996717947,0.001,94852.0,94851.0,0.012]